bitfinex/quotes_SOLUSD_20240824
["timestamp","ask_amount","ask_price","bid_price","bid_amount"]
[1724516649188,29.85274363,161.15,161.07,6.2083]
[1724516649380,29.85274363,161.15,161.08,6.208]
[1724516649681,15.2678,161.16,161.08,6.208]
[1724516649682,15.2678,161.16,161.08,15.5197]
[1724516649873,15.2678,161.16,161.12,6.2064]
[1724516650073,15.2678,161.16,161.08,15.5197]
[1724516650867,21.4729,161.16,161.1,6.2072]
[1724516651088,29.85274363,161.15,161.08,15.5197]
[1724516651382,29.85274363,161.15,161.04,15.5237]
[1724516651383,29.85274363,161.12,161.04,15.5237]
[1724516651573,29.85274363,161.12,161.07,6.2084]
[1724516652059,6.2059,161.14,161.08,6.2079]
[1724516652259,36.05814363,161.15,161.07,15.0208]
[1724516652464,6.2059,161.14,161.07,15.0208]
[1724516652692,6.2061,161.13,161.07,21.2292]
[1724516653067,29.85274363,161.19,161.12,15.5161]
[1724516653686,36.05654363,161.19,161.13,6.2058]
[1724516653896,29.85274363,161.19,161.12,15.5161]
[1724516654279,15.9502,161.21,161.12,15.5161]
[1724516654477,29.85274363,161.16,161.08,1.24091563]
[1724516654689,22.0395,161.12,161.06,6.2087]
[1724516654991,29.85274363,161.1,160.96,31.0621]
[1724516655194,51.89224363,161.12,161.0,15.5273]
[1724516655195,29.85274363,161.07,161.0,15.5273]
[1724516655395,29.85274363,161.07,160.96,15.5312]
[1724516655614,6.2116,160.99,160.92,12.70274326]
[1724516655778,6.2116,160.99,160.92,21.7492]
[1724516655964,6.2116,160.99,160.93,6.2138]
[1724516656169,29.85274363,161.01,160.93,6.2138]
[1724516656370,42.15284363,161.01,160.94,6.2134]
[1724516656600,6.2113,161.0,160.92,15.5352]
[1724516656807,15.9502,161.03,160.9,29.85274363]
[1724516656964,15.9502,161.03,160.99,6.2114]
[1724516657169,6.0893,161.06,161.0,6.211]
[1724516657997,6.0893,161.06,161.01,6.2107]
[1724516658484,29.85274363,161.05,160.95,12.43623768]
[1724516658787,29.85274363,161.05,160.98,6.2118]
[1724516658984,29.85274363,161.05,160.99,6.2114]
[1724516659288,36.06214363,161.05,160.97,15.5301]
[1724516659803,29.85274363,161.03,160.97,21.7423]
[1724516660100,29.85274363,161.03,160.97,15.5301]
[1724516660881,6.2105,161.02,160.97,15.5301]
[1724516661295,29.85274363,161.0,160.94,6.2131]
[1724516661613,29.85274363,161.0,160.9,12.43848753]
[1724516661614,29.85274363,161.0,160.9,18.65338753]
[1724516661783,29.85274363,161.0,160.89,6.49584725]
[1724516661784,6.2118,160.99,160.91,1.55511573]
[1724516661983,0.82643907,161.02,160.88,49.85274363]
[1724516662192,51.89224363,161.07,160.99,6.2115]
[1724516662694,51.89224363,161.07,160.97,15.5304]
[1724516662695,58.9273827,161.07,160.97,15.5304]
[1724516662887,6.21,161.03,160.97,21.7425]
[1724516663088,30.6791827,161.04,160.91,12.43845164]
[1724516663287,29.85274363,160.98,160.93,15.5341]
[1724516663485,45.80294363,160.98,160.93,15.5341]
[1724516663820,15.9502,160.98,160.93,21.7479]
[1724516664002,15.9502,160.98,160.94,6.2133]
[1724516664201,15.9502,161.03,160.96,15.5312]
[1724516664908,15.9502,161.03,161.01,6.2107]
[1724516665600,15.9502,161.03,160.99,21.7396]
[1724516665990,22.1602,161.03,160.97,6.212]
[1724516666495,36.06314363,161.02,160.96,6.2127]
[1724516666697,6.2112,161.0,160.95,15.532]
[1724516666896,6.2119,160.98,160.91,21.7501]
[1724516667101,0.82643907,160.97,160.92,6.2142]
[1724516667611,29.85274363,160.99,160.93,6.2136]
[1724516667815,36.8906827,160.99,160.91,15.5359]
[1724516668020,36.06424363,160.99,160.91,15.5359]
[1724516668387,6.2115,160.99,160.91,15.5359]
[1724516668896,6.2119,160.98,160.91,15.5359]
[1724516669098,7.03833907,160.98,160.92,6.214]
[1724516669309,6.2128,160.96,160.91,15.5359]
[1724516669495,0.82643907,160.95,160.89,6.2154]
[1724516669703,6.2135,160.94,160.88,6.2156]
[1724516669904,16.3354,160.96,160.94,6.2133]
[1724516670204,20.0,161.14,160.89,36.87436914]
[1724516670205,22.8136,161.02,160.99,6.2114]
[1724516671106,22.8136,161.02,160.97,6.212]
[1724516671894,22.8136,161.02,160.98,6.2116]
[1724516672118,22.8136,161.02,161.0,21.7389]
[1724516672627,22.8136,161.02,161.0,15.5278]
[1724516672797,22.8136,161.02,161.0,21.7389]
[1724516673412,22.8136,161.02,161.0,15.5278]
[1724516675035,16.3354,161.02,161.01,6.2107]
[1724516675515,16.3354,161.06,161.0,15.5278]
[1724516676293,16.3354,161.06,161.03,15.5247]
[1724516677198,16.3354,161.06,160.99,15.5288]
[1724516677400,16.3354,161.06,161.01,6.2107]
[1724516678017,6.2097,161.04,160.99,15.5288]
[1724516678690,45.0,161.03,160.95,15.5325]
[1724516678910,16.3354,161.06,160.93,62.1366]
[1724516679112,16.3354,161.06,160.94,44.96009652]
[1724516679406,16.3354,161.06,160.95,1.55480982]
[1724516679608,16.3354,161.06,161.04,6.2094]
[1724516680008,16.3354,161.06,161.02,15.526]
[1724516680917,16.3354,161.06,161.03,6.2099]
[1724516683615,17.16183907,161.06,161.0,31.0555]
[1724516683840,16.3354,161.06,161.01,1.2419146]
[1724516684001,16.3354,161.06,161.0,31.0555]
[1724516684002,16.3354,161.1,161.05,6.2092]
[1724516684412,16.3354,161.1,161.04,15.5235]
[1724516684413,22.5427,161.1,161.04,21.7328]
[1724516684904,6.2078,161.09,161.04,15.5235]
[1724516685914,22.5427,161.1,161.04,21.7331]
[1724516686714,16.3354,161.1,161.05,6.2091]
[1724516687016,16.3354,161.1,161.04,15.5235]
[1724516687017,16.3354,161.1,161.06,6.2088]
[1724516687324,16.3354,161.1,161.08,6.2079]
[1724516687913,16.3354,161.1,161.09,6.2077]
[1724516688102,16.3354,161.1,161.08,6.208]
[1724516688299,16.3354,161.1,161.07,15.5209]
[1724516689311,21.9857,161.15,161.11,15.517]
[1724516689732,21.9857,161.15,161.13,6.206]
[1724516689951,21.9857,161.15,161.11,21.7236]
[1724516690158,21.9857,161.15,161.11,15.517]
[1724516690672,21.9857,161.15,161.05,31.0449]
[1724516691018,21.9857,161.15,161.09,15.5188]
[1724516691722,28.1911,161.15,161.09,15.5188]
[1724516691921,6.206,161.14,161.07,6.2081]
[1724516692144,6.206,161.14,161.05,21.7316]
[1724516692145,45.0,161.13,161.05,21.7316]
[1724516692340,6.2069,161.11,161.05,21.7316]
[1724516693148,15.8716,161.09,161.05,15.5227]
[1724516693350,22.0793,161.09,161.03,6.2096]
[1724516693916,12.3222,161.08,161.01,21.7369]
[1724516694046,6.2089,161.06,160.99,6.2115]
[1724516694355,6.2089,161.06,161.0,6.2111]
[1724516694519,47.95373757,161.08,161.01,6.2107]
[1724516694720,51.2085,161.07,161.01,6.2107]
[1724516695630,51.2085,161.07,160.98,1.24225165]
[1724516695631,6.2085,161.07,161.02,6.2103]
[1724516695830,6.1141,161.08,161.03,15.5247]
[1724516696027,6.1141,161.08,161.04,6.2096]
[1724516696227,6.1141,161.08,161.03,21.6268]
[1724516696635,6.1141,161.08,161.04,6.2093]
[1724516697042,6.1141,161.08,161.03,15.4172]
[1724516697345,12.3222,161.08,161.03,15.4172]
[1724516697533,6.2084,161.07,161.01,6.2104]
[1724516698881,12.3221,161.08,161.02,6.2103]
[1724516699178,6.2085,161.07,160.99,15.5282]
[1724516699351,51.2085,161.07,161.01,6.2107]
[1724516700796,6.1141,161.08,161.04,15.524]
[1724516700975,15.8716,161.09,161.05,1.24181573]
[1724516701278,15.8716,161.09,161.06,6.2084]
[1724516701470,15.8716,161.09,161.07,6.2084]
[1724516701661,15.8716,161.09,161.05,6.209]
[1724516702078,15.8716,161.09,161.04,15.524]
[1724516702657,15.8716,161.09,160.99,12.4352745]
[1724516702658,15.8716,161.09,161.01,6.2104]
[1724516702891,6.4339,161.05,160.99,15.5279]
[1724516703069,7.26033907,161.05,160.99,21.7391]
[1724516703296,6.4339,161.05,160.99,21.7391]
[1724516704399,6.4339,161.05,160.99,15.5279]
[1724516704596,0.82643907,161.04,160.99,15.5279]
[1724516704883,6.4339,161.05,160.99,15.5279]
[1724516705271,6.4339,161.08,160.99,15.5279]
[1724516705467,6.4339,161.08,161.04,6.2094]
[1724516705696,6.4339,161.08,161.02,15.5255]
[1724516705697,6.4339,161.08,161.05,6.2091]
[1724516706603,6.4339,161.08,161.04,6.2096]
[1724516706983,6.4339,161.08,161.05,6.2092]
[1724516707183,6.4339,161.08,161.05,15.5228]
[1724516707491,6.4339,161.08,161.07,6.2084]
[1724516707698,66.8824,161.24,161.09,15.5192]
[1724516707699,21.6507,161.13,161.09,15.5192]
[1724516708700,42.66417664,161.12,161.06,6.2088]
[1724516709109,6.2077,161.09,161.03,6.2099]
[1724516709312,0.82643907,161.08,161.03,6.2099]
[1724516709662,6.2077,161.09,161.03,6.2099]
[1724516709775,7.03373907,161.11,161.05,6.2092]
[1724516709975,45.0,161.1,161.06,6.2088]
[1724516710197,6.2073,161.11,161.06,6.2088]
[1724516710395,35.63123757,161.12,161.07,6.2083]
[1724516710607,45.0,161.11,161.07,6.2083]
[1724516711114,45.0,161.11,161.05,6.2089]
[1724516711679,0.82643907,161.1,161.03,21.7341]
[1724516712404,7.03403907,161.1,161.04,6.2095]
[1724516712611,45.0,161.09,161.04,6.2095]
[1724516712987,51.2077,161.09,161.04,6.2095]
[1724516713208,51.2077,161.09,161.0,6.2111]
[1724516713209,12.402,161.06,161.0,6.2111]
[1724516713388,6.2092,161.05,160.99,15.5281]
[1724516713589,6.2097,161.04,160.99,15.5281]
[1724516713804,6.2108,161.01,160.95,21.745]
[1724516714012,16.1491,160.99,160.95,15.532]
[1724516714188,0.82643907,160.98,160.96,6.2126]
[1724516714517,0.82643907,160.98,160.91,15.5361]
[1724516714518,35.63123757,160.97,160.91,15.5361]
[1724516714729,6.2131,160.95,160.87,15.5401]
[1724516714895,0.82643907,160.95,160.88,9.33328375]
[1724516715391,35.63123757,160.94,160.88,1.55554729]
[1724516715717,44.8448,160.93,160.89,6.2152]
[1724516716224,35.63123757,160.94,160.89,6.2152]
[1724516716439,35.63123757,160.94,160.87,15.5401]
[1724516716620,0.82643907,160.96,160.87,15.5401]
[1724516717291,6.2127,160.96,160.89,6.2151]
[1724516717490,7.03913907,160.96,160.89,6.2151]
[1724516717690,7.03913907,160.96,160.87,15.5401]
[1724516717691,45.0,160.95,160.9,6.2149]
[1724516717886,45.82643907,160.95,160.9,6.2149]
[1724516718299,45.82643907,160.95,160.89,6.2154]
[1724516718493,35.63123757,160.94,160.87,15.5401]
[1724516718816,45.0,160.93,160.87,15.5401]
[1724516719112,45.0,160.93,160.89,6.215]
[1724516719911,45.0,160.93,160.88,6.2157]
[1724516720502,45.0,160.93,160.89,6.2153]
[1724516721115,45.0,160.93,160.88,6.2157]
[1724516721311,6.1928,160.98,160.93,15.5344]
[1724516721616,6.1928,160.98,160.91,6.2142]
[1724516721995,13.23123907,160.98,160.92,6.2141]
[1724516722257,6.1928,160.98,160.93,6.2138]
[1724516722608,6.1928,160.98,160.94,6.2134]
[1724516722794,6.1928,160.98,160.95,6.2129]
[1724516722997,6.1928,160.98,160.93,6.2135]
[1724516723417,6.1928,160.98,160.94,6.2134]
[1724516727725,45.0,160.97,160.94,6.2134]
[1724516728342,80.63121637,160.97,160.92,15.5351]
[1724516729119,80.63121637,160.97,160.92,21.7491]
[1724516729637,6.1928,160.98,160.97,6.2123]
[1724516729933,16.1491,160.99,160.97,6.2123]
[1724516731320,6.6395,161.02,160.99,6.2112]
[1724516731650,6.6395,161.02,160.95,15.5323]
[1724516731651,6.6395,161.02,161.0,6.2111]
[1724516732220,6.6395,161.02,161.0,6.2109]
[1724516733027,15.5089,161.03,161.02,6.2104]
[1724516733250,15.5089,161.03,161.02,21.7364]
[1724516733600,15.5089,161.03,161.02,15.526]
[1724516734727,15.5089,161.03,161.0,6.2111]
[1724516735230,15.5089,161.03,160.98,15.5294]
[1724516735439,15.5089,161.03,161.0,6.211]
[1724516735619,15.5089,161.03,161.01,6.2106]
[1724516735806,15.5089,161.03,161.0,6.211]
[1724516737839,45.0,161.02,160.98,21.7413]
[1724516738009,45.0,161.02,160.98,15.5294]
[1724516738210,45.0,161.02,160.98,21.7412]
[1724516738908,41.84241637,161.0,160.93,21.7474]
[1724516739109,35.63121637,161.0,160.93,21.7474]
[1724516739309,51.2115,160.99,160.93,15.5337]
[1724516739517,6.6395,160.98,160.89,15.5384]
[1724516739739,45.0,160.97,160.89,15.5384]
[1724516740941,45.0,160.97,160.92,6.2142]
[1724516743543,22.1484,161.03,160.96,15.5318]
[1724516744037,22.1484,161.03,160.98,6.2116]
[1724516744243,28.3585,161.03,160.97,6.2121]
[1724516744737,22.1484,161.03,160.99,6.2114]
[1724516746630,22.97483907,161.03,160.96,15.5318]
[1724516746821,22.1484,161.03,160.96,15.5318]
[1724516747750,45.0,161.02,160.96,15.5318]
[1724516748252,45.0,161.02,160.98,6.2119]
[1724516748844,45.0,161.02,160.96,15.5318]
[1724516749150,29.67210592,160.99,160.93,6.2137]
[1724516749337,29.67210592,160.99,160.94,6.2134]
[1724516749531,45.0,160.98,160.94,6.2134]
[1724516749726,45.0,160.98,160.92,15.5352]
[1724516749933,45.0,160.98,160.94,6.2134]
[1724516750359,45.0,160.98,160.92,21.7491]
[1724516750690,45.0,160.98,160.93,6.2138]
[1724516751754,16.0451,160.97,160.92,15.5352]
[1724516751959,45.0,160.96,160.92,15.5352]
[1724516752131,45.0,160.96,160.92,21.7493]
[1724516753431,45.0,160.96,160.93,6.2138]
[1724516753734,16.0451,160.97,160.94,6.2134]
[1724516753933,16.0451,160.97,160.96,6.2127]
[1724516754334,16.0451,161.01,160.95,15.5321]
[1724516754652,16.0451,161.01,160.97,6.2123]
[1724516754859,16.0451,161.01,160.96,6.2125]
[1724516755151,16.0451,161.01,160.97,6.2122]
[1724516755452,16.0451,161.01,160.98,6.2117]
[1724516755838,16.0451,161.01,160.98,15.5296]
[1724516756038,16.0451,161.01,161.0,6.2111]
[1724516756349,16.0451,161.05,161.02,6.2104]
[1724516756743,16.0451,161.05,161.01,15.5266]
[1724516756951,16.0451,161.1,161.06,6.2086]
[1724516757654,16.0451,161.1,161.07,6.2084]
[1724516757866,16.0451,161.1,161.05,21.7318]
[1724516758238,16.0451,161.1,161.06,6.2086]
[1724516758570,22.6963,161.15,161.07,1.24176928]
[1724516758871,16.0451,161.15,161.13,6.206]
[1724516759851,6.6512,161.19,161.14,6.2056]
[1724516760078,6.6512,161.19,161.12,15.5163]
[1724516760231,6.6512,161.19,161.13,6.2058]
[1724516760639,0.8238908,161.22,161.16,15.5122]
[1724516760932,0.8238908,161.22,161.16,21.717]
[1724516761159,0.8238908,161.22,161.16,15.5122]
[1724516761633,0.8238908,161.22,161.12,6.2063]
[1724516761830,29.67210592,161.21,161.11,15.5166]
[1724516762054,6.2037,161.2,161.11,21.7234]
[1724516762263,29.67210592,161.18,161.11,15.5166]
[1724516762556,22.2499,161.17,161.09,6.2075]
[1724516762749,16.0451,161.17,161.1,6.2071]
[1724516763152,6.2051,161.16,161.08,6.2078]
[1724516763350,29.67210592,161.15,161.08,6.2078]
[1724516763539,16.0451,161.17,161.09,6.2074]
[1724516763739,45.71720592,161.17,161.09,6.2074]
[1724516764450,45.71720592,161.17,161.08,6.2079]
[1724516764451,6.2054,161.15,161.08,6.2079]
[1724516764757,6.2059,161.14,161.06,15.5213]
[1724516764959,6.2052,161.16,161.08,6.208]
[1724516765143,45.71720592,161.17,161.08,6.208]
[1724516765836,45.71720592,161.17,161.06,15.5213]
[1724516765837,29.67210592,161.14,161.06,15.5213]
[1724516766042,29.67210592,161.14,161.06,21.7301]
[1724516766043,6.2065,161.12,161.06,21.7301]
[1724516766242,29.67210592,161.14,161.06,21.7301]
[1724516766457,6.2062,161.13,161.07,6.2084]
[1724516766649,6.2066,161.12,161.06,15.5213]
[1724516766848,6.2069,161.11,161.03,7.45125379]
[1724516767046,6.2069,161.11,161.03,6.2097]
[1724516767047,6.2074,161.1,161.03,6.2097]
[1724516767245,29.67210592,161.11,161.03,6.2097]
[1724516767452,29.67210592,161.11,161.04,6.2095]
[1724516767680,29.67210592,161.11,161.02,21.7356]
[1724516767868,29.67210592,161.11,161.03,6.2099]
[1724516767869,6.2077,161.09,161.03,6.2099]
[1724516768254,35.87920592,161.11,161.04,6.2095]
[1724516768755,29.67210592,161.11,161.05,6.2091]
[1724516768954,6.2064,161.13,161.06,6.2087]
[1724516769465,29.67210592,161.11,161.04,6.2093]
[1724516769641,29.67210592,161.11,161.05,6.2091]
[1724516770161,35.87930592,161.11,161.05,6.2091]
[1724516770363,29.67210592,161.11,161.06,15.5217]
[1724516770556,29.67210592,161.11,161.06,21.7302]
[1724516772050,16.0451,161.17,161.07,1.24161099]
[1724516772250,6.205,161.16,161.08,7.44902592]
[1724516772550,6.2054,161.15,161.09,6.2076]
[1724516773464,45.71720592,161.17,161.06,15.5217]
[1724516773670,6.2058,161.14,161.07,6.2083]
[1724516773854,6.2058,161.14,161.06,15.5217]
[1724516773855,6.2062,161.13,161.06,15.5217]
[1724516774053,29.67210592,161.14,161.06,15.5217]
[1724516774258,45.0,161.13,161.06,15.5217]
[1724516774470,29.67210592,161.11,161.06,15.5217]
[1724516774673,35.87910592,161.11,161.04,6.2092]
[1724516775195,15.0982,161.07,161.0,6.211]
[1724516775347,15.0982,161.07,161.01,6.2107]
[1724516775348,21.3068,161.07,161.01,6.2107]
[1724516775877,21.3068,161.07,160.98,15.5298]
[1724516776176,21.3068,161.07,160.99,1.24210655]
[1724516776358,21.3068,161.07,161.01,15.5266]
[1724516776359,15.0982,161.07,161.01,15.5266]
[1724516777060,45.0,161.1,161.01,15.5266]
[1724516777061,6.2073,161.1,161.01,15.5266]
[1724516777481,6.2081,161.08,161.02,6.2102]
[1724516778364,6.208,161.09,161.02,6.2102]
[1724516778550,6.2082,161.08,161.01,21.7373]
[1724516778951,6.2076,161.1,161.01,15.5266]
[1724516779174,45.0,161.09,161.01,15.5266]
[1724516779480,50.81670592,161.11,161.05,6.2091]
[1724516779788,50.81670592,161.11,161.06,6.2088]
[1724516780072,21.1446,161.11,161.07,6.2084]
[1724516780281,29.67210592,161.14,161.07,15.5207]
[1724516781046,21.1446,161.15,161.1,6.2072]
[1724516782170,27.35,161.15,161.08,6.2077]
[1724516782682,15.0982,161.15,161.11,15.5172]
[1724516784252,15.0982,161.15,161.1,6.2069]
[1724516784253,21.3036,161.15,161.1,6.2069]
[1724516784496,15.0982,161.15,161.08,6.2077]
[1724516784853,29.67210592,161.14,161.07,15.5203]
[1724516785080,45.0,161.13,161.07,15.5203]
[1724516785770,6.2066,161.12,161.07,21.7287]
[1724516785977,29.67210592,161.14,161.07,21.7287]
[1724516786366,6.2066,161.12,161.07,21.7287]
[1724516786773,29.67210592,161.11,161.05,6.2089]
[1724516787293,15.0982,161.15,161.06,1.24175036]
[1724516787455,15.0982,161.15,161.12,6.2062]
[1724516787655,15.0982,161.15,161.09,15.5187]
[1724516787656,21.3037,161.15,161.09,15.5187]
[1724516787876,6.2063,161.13,161.06,6.2086]
[1724516788074,6.2063,161.13,160.99,1.24137353]
[1724516788075,6.2068,161.12,161.04,6.2096]
[1724516788265,15.0982,161.15,161.05,6.48465535]
[1724516788491,6.0464,161.18,161.06,6.5969]
[1724516788905,15.0982,161.19,161.17,6.2044]
[1724516789252,15.0982,161.19,161.16,6.2049]
[1724516790890,15.0982,161.19,161.13,15.5149]
[1724516791186,21.3021,161.19,161.13,21.7208]
[1724516791357,15.0982,161.19,161.13,15.5149]
[1724516791557,15.0982,161.19,161.15,6.2053]
[1724516792563,15.0982,161.19,161.16,6.205]
[1724516792767,6.2033,161.21,161.16,6.205]
[1724516792976,45.0,161.2,161.16,6.205]
[1724516793893,22.3272908,161.22,161.16,15.512]
[1724516794064,22.3272908,161.22,161.2,6.2033]
[1724516794865,16.2808908,161.22,161.21,6.203]
[1724516795064,16.2808908,161.22,161.2,15.5083]
[1724516796182,16.2808908,161.22,161.16,15.5118]
[1724516796504,16.2808908,161.22,161.17,6.2046]
[1724516796700,16.2808908,161.22,161.18,6.204]
[1724516796886,16.2808908,161.22,161.16,15.5118]
[1724516796887,16.2808908,161.22,161.19,6.2037]
[1724516797767,16.2808908,161.22,161.2,6.2032]
[1724516798594,16.2808908,161.22,161.19,21.7128]
[1724516798800,0.8238908,161.22,161.19,15.5093]
[1724516799105,0.8238908,161.22,161.21,6.203]
[1724516801794,0.8238908,161.22,161.21,7.44336999]
[1724516801993,0.8238908,161.22,161.21,6.203]
[1724516802494,0.8238908,161.22,161.21,7.44341643]
[1724516803199,15.457,161.32,161.29,15.4997]
[1724516803497,6.1981,161.34,161.29,15.4997]
[1724516803794,15.457,161.36,161.29,15.4997]
[1724516804507,15.457,161.36,161.31,6.1991]
[1724516805183,15.457,161.36,161.25,31.0076]
[1724516805184,15.457,161.36,161.32,15.4969]
[1724516805394,15.457,161.47,161.33,29.67210592]
[1724516805569,15.457,161.47,161.37,6.1969]
[1724516805769,30.49854499,161.46,161.35,15.4935]
[1724516805973,6.2343,161.41,161.36,6.1972]
[1724516806191,6.2343,161.41,161.35,15.4935]
[1724516806774,7.06073907,161.41,161.36,6.1973]
[1724516806969,6.2343,161.41,161.35,21.691]
[1724516807885,29.67210592,161.4,161.35,15.4935]
[1724516808081,29.67210592,161.37,161.31,15.4974]
[1724516808280,0.82643907,161.36,161.27,15.5016]
[1724516808611,45.0,161.36,161.31,6.1992]
[1724516808898,45.0,161.36,161.3,6.1994]
[1724516809108,0.8238908,161.38,161.33,6.1984]
[1724516809399,7.0203908,161.38,161.31,6.12055323]
[1724516809578,6.5748,161.33,161.26,21.7032]
[1724516809777,29.67210592,161.31,161.18,6.5943]
[1724516809996,36.24690592,161.33,161.28,6.2003]
[1724516810322,6.1959,161.4,161.33,6.1981]
[1724516810525,21.631,161.41,161.34,6.1978]
[1724516811017,27.8264,161.41,161.34,6.1978]
[1724516811193,21.631,161.41,161.35,6.1975]
[1724516811392,21.631,161.41,161.32,15.4968]
[1724516811915,29.67210592,161.39,161.32,21.6954]
[1724516812100,27.8265,161.41,161.33,6.1983]
[1724516812301,6.5748,161.44,161.37,15.4923]
[1724516812518,29.67210592,161.41,161.34,6.1978]
[1724516812703,15.0562,161.42,161.28,31.0016]
[1724516812905,15.0562,161.47,161.36,28.2837]
[1724516813116,0.82643907,161.52,161.46,6.1933]
[1724516813117,29.67210592,161.51,161.46,6.1933]
[1724516813295,29.67210592,161.51,161.44,21.6791]
[1724516813620,29.67210592,161.51,161.36,6.5943]
[1724516813621,29.67210592,161.48,161.41,6.1951]
[1724516814036,29.67210592,161.48,161.41,6.1952]
[1724516814037,36.40169315,161.48,161.41,6.1952]
[1724516814197,36.40169315,161.48,161.43,6.1944]
[1724516814393,29.67210592,161.51,161.44,15.4855]
[1724516814594,29.67210592,161.51,161.44,21.6795]
[1724516815321,29.67210592,161.51,161.42,6.1948]
[1724516815517,29.67210592,161.48,161.43,15.4862]
[1724516815728,21.631,161.52,161.46,6.1933]
[1724516816110,21.631,161.52,161.47,6.1929]
[1724516816414,21.631,161.52,161.48,6.1925]
[1724516816729,21.631,161.52,161.49,6.1921]
[1724516817394,21.631,161.52,161.47,15.4827]
[1724516817805,21.631,161.52,161.49,6.1922]
[1724516817999,0.8238908,161.54,161.5,6.1918]
[1724516818616,0.8238908,161.54,161.5,6.1919]
[1724516818793,0.8238908,161.54,161.5,15.4793]
[1724516819802,0.8238908,161.54,161.48,6.1926]
[1724516820112,0.8238908,161.54,161.49,15.4802]
[1724516820323,0.8238908,161.54,161.52,6.1909]
[1724516820612,0.8238908,161.54,161.52,21.6681]
[1724516820806,0.8238908,161.54,161.48,15.4815]
[1724516821034,29.67210592,161.53,161.47,6.193]
[1724516821202,35.88520592,161.53,161.47,6.193]
[1724516821397,0.8238908,161.54,161.46,15.483]
[1724516821698,0.8238908,161.54,161.5,6.1918]
[1724516821902,0.8238908,161.54,161.46,15.483]
[1724516822116,6.1911,161.53,161.39,36.01500592]
[1724516822322,0.8238908,161.54,161.47,6.193]
[1724516822631,0.8238908,161.54,161.39,37.25344689]
[1724516822632,0.8238908,161.54,161.48,6.1925]
[1724516822832,7.0142908,161.54,161.45,15.484]
[1724516823331,0.8238908,161.54,161.49,15.4807]
[1724516823740,0.8238908,161.54,161.45,15.4846]
[1724516823901,6.1916,161.51,161.45,15.4846]
[1724516824103,6.2131,161.52,161.45,21.6783]
[1724516824298,6.2131,161.52,161.46,6.1934]
[1724516824533,35.88520592,161.52,161.45,15.4846]
[1724516824829,6.2131,161.52,161.45,15.4846]
[1724516825430,6.2131,161.52,161.46,6.1933]
[1724516825600,6.2131,161.52,161.47,6.1929]
[1724516825803,6.2131,161.56,161.51,6.1915]
[1724516826026,6.2131,161.56,161.47,15.4826]
[1724516826436,35.88520592,161.56,161.47,15.4826]
[1724516826609,35.88520592,161.56,161.48,6.1926]
[1724516826815,35.88520592,161.56,161.49,6.1922]
[1724516827019,6.2131,161.56,161.47,21.6753]
[1724516828104,6.2131,161.56,161.47,15.4826]
[1724516828300,6.2131,161.56,161.44,30.9705]
[1724516828301,6.2131,161.56,161.53,6.1907]
[1724516828520,6.1887,161.59,161.53,6.1907]
[1724516828900,12.4013,161.6,161.53,6.1907]
[1724516829816,6.2131,161.6,161.54,15.4759]
[1724516830239,15.3254,161.68,161.57,15.4722]
[1724516830435,6.1859,161.66,161.6,6.188]
[1724516830610,21.5104,161.68,161.62,6.1872]
[1724516830810,21.5104,161.68,161.6,15.4693]
[1724516830811,15.3254,161.68,161.63,6.1868]
[1724516831019,15.3254,161.68,161.64,6.1864]
[1724516831236,0.8238908,161.7,161.64,6.1864]
[1724516831423,0.8238908,161.7,161.65,6.1861]
[1724516831732,0.8238908,161.7,161.63,15.4668]
[1724516832036,0.8238908,161.7,161.66,21.6494]
[1724516832205,0.8238908,161.7,161.61,1.23697247]
[1724516832401,0.8238908,161.7,161.65,15.4647]